bitfinex/quotes_SOLUSD_20240623
["timestamp","ask_amount","ask_price","bid_price","bid_amount"]
[1719126467072,7.71791829,134.67,134.64,13.917]
[1719126468799,7.71791829,134.67,134.64,6.49]
[1719126469277,7.71791829,134.67,134.64,7.39117162]
[1719126470897,15.14341829,134.67,134.64,6.49]
[1719126471396,15.14341829,134.67,134.63,6.49]
[1719126473507,15.14341829,134.67,134.62,13.9181]
[1719126474194,7.71791829,134.67,134.63,7.4275]
[1719126474576,7.71791829,134.67,134.65,7.4264]
[1719126474782,7.71791829,134.67,134.63,6.49]
[1719126474985,7.71791829,134.67,134.63,13.9175]
[1719126477294,7.71791829,134.67,134.62,7.4281]
[1719126477488,7.71791829,134.67,134.62,13.9181]
[1719126479695,7.71791829,134.67,134.63,7.4275]
[1719126485091,7.71791829,134.67,134.64,7.427]
[1719126485293,7.71791829,134.67,134.63,7.4276]
[1719126485494,7.71791829,134.67,134.63,13.9176]
[1719126488092,7.71791829,134.67,134.63,100.0]
[1719126488292,16.2462,134.71,134.66,13.9161]
[1719126488505,16.2462,134.71,134.67,14.51864585]
[1719126488709,7.71159922,134.69,134.67,13.9154]
[1719126491201,7.71159922,134.69,134.68,6.49]
[1719126491387,7.71159922,134.69,134.68,13.915]
[1719126492218,7.71159922,134.69,134.68,6.49]
[1719126495291,7.71159922,134.69,134.68,13.915]
[1719126500108,7.71159922,134.69,134.67,7.4254]
[1719126501310,7.71159922,134.69,134.68,7.425]
[1719126501616,7.71159922,134.69,134.68,13.915]
[1719126508116,7.71159922,134.69,134.68,7.425]
[1719126531463,7.71159922,134.69,134.67,6.49]
[1719126531774,7.71159922,134.69,134.67,7.4255]
[1719126532456,7.71159922,134.69,134.65,6.49]
[1719126532457,7.71159922,134.69,134.68,7.425]
[1719126534248,7.71159922,134.69,134.67,7.4253]
[1719126538527,7.71159922,134.69,134.66,13.9158]
[1719126546246,7.71159922,134.69,134.66,6.49]
[1719126547255,7.71159922,134.69,134.66,13.9158]
[1719126547554,7.71159922,134.69,134.67,6.49]
[1719126548537,7.71159922,134.69,134.67,13.9155]
[1719126549851,7.71159922,134.69,134.67,6.49]
[1719126550660,7.71159922,134.69,134.66,6.49]
[1719126551760,7.71159922,134.69,134.66,13.916]
[1719126555539,7.71159922,134.69,134.67,7.4255]
[1719126564565,7.71159922,134.69,134.68,7.425]
[1719126567249,7.71159922,134.69,134.67,13.9153]
[1719126575080,14.8683,134.73,134.68,13.915]
[1719126575263,7.69126304,134.71,134.69,6.49]
[1719126576751,7.69126304,134.71,134.69,11.16834535]
[1719126579489,7.69126304,134.71,134.69,6.49]
[1719126580587,7.69126304,134.71,134.68,13.915]
[1719126587796,7.69126304,134.71,134.69,7.4243]
[1719126590777,7.69126304,134.71,134.68,6.49]
[1719126590981,7.69126304,134.71,134.7,7.4239]
[1719126592093,7.69126304,134.71,134.69,13.9142]
[1719126600398,7.69126304,134.71,134.69,7.4242]
[1719126602401,7.69126304,134.71,134.7,6.49]
[1719126607592,7.69126304,134.71,134.69,13.9142]
[1719126609191,7.69126304,134.71,134.69,6.49]
[1719126617219,7.69126304,134.71,134.69,13.9143]
[1719126625721,7.69126304,134.71,134.69,7.4243]
[1719126631337,7.69126304,134.71,134.7,7.4239]
[1719126637916,7.69126304,134.71,134.69,7.4242]
[1719126638316,7.69126304,134.71,134.69,13.9142]
[1719126640741,7.69126304,134.71,134.69,7.4242]
[1719126641330,7.69126304,134.71,134.7,7.4239]
[1719126646963,7.69126304,134.71,134.68,7.4244]
[1719126647446,7.69126304,134.71,134.69,7.4243]
[1719126648643,7.69126304,134.71,134.7,7.4239]
[1719126652745,261.69126304,134.71,134.7,7.4239]
[1719126656156,261.69126304,134.71,134.69,7.4242]
[1719126660534,7.69126304,134.71,134.69,7.4242]
[1719126663549,7.69126304,134.71,134.7,7.4239]
[1719126663742,22.3478,134.74,134.7,7.4239]
[1719126664142,7.7540944,134.73,134.7,7.4239]
[1719126667033,7.7540944,134.73,134.65,115.074]
[1719126667234,6.49,134.71,134.66,7.4256]
[1719126667436,6.49,134.7,134.66,7.4256]
[1719126670156,6.49,134.7,134.67,7.4254]
[1719126670841,6.49,134.68,134.63,18.5683]
[1719126671038,6.49,134.68,134.63,25.0583]
[1719126671965,6.49,134.68,134.65,7.4263]
[1719126674553,7.75039772,134.67,134.65,7.4263]
[1719126675563,7.75039772,134.67,134.66,7.4261]
[1719126677866,7.75039772,134.67,134.65,7.4264]
[1719126688052,7.75039772,134.67,134.64,6.49]
[1719126688261,7.75039772,134.67,134.63,18.5683]
[1719126688262,7.75039772,134.67,134.66,7.4261]
[1719126688460,7.75039772,134.67,134.66,13.9161]
[1719126688775,7.75039772,134.67,134.66,7.4261]
[1719126695878,7.446,134.71,134.67,7.4255]
[1719126696060,7.75013005,134.69,134.67,7.4255]
[1719126696256,7.75013005,134.69,134.67,13.9155]
[1719126697386,7.75013005,134.69,134.67,6.49]
[1719126699279,7.75013005,134.69,134.68,13.915]
[1719126699661,7.446,134.72,134.68,13.915]
[1719126699863,7.74893656,134.71,134.69,6.49]
[1719126700993,7.74893656,134.71,134.68,13.915]
[1719126702261,7.74893656,134.71,134.69,7.4244]
[1719126702688,7.446,134.73,134.69,7.4244]
[1719126705081,21.3583,134.73,134.68,7.4248]
[1719126705585,13.936,134.72,134.68,7.4248]
[1719126706989,13.936,134.72,134.69,7.4243]
[1719126712799,7.75276684,134.71,134.69,7.4243]
[1719126713595,14.24276684,134.71,134.69,7.4243]
[1719126713803,14.24276684,134.71,134.68,7.4247]
[1719126714382,14.24276684,134.71,134.69,7.4243]
[1719126714802,7.75276684,134.71,134.69,7.4243]
[1719126715202,7.75276684,134.71,134.7,7.4239]
[1719126717397,7.75276684,134.71,134.69,7.4242]
[1719126726319,7.75276684,134.71,134.7,7.4239]
[1719126726522,7.75276684,134.71,134.67,25.0536]
[1719126727115,7.75276684,134.71,134.69,7.4242]
[1719126727410,7.75276684,134.71,134.67,25.0536]
[1719126727411,7.75276684,134.71,134.68,7.4247]
[1719126731489,7.75276684,134.71,134.67,6.49]
[1719126731490,7.75276684,134.71,134.69,7.4244]
[1719126741019,7.75276684,134.71,134.7,7.4239]
[1719126742415,7.75276684,134.71,134.69,7.4242]
[1719126747215,7.75276684,134.71,134.7,7.4239]
[1719126753330,21.7612,134.76,134.72,7.4226]
[1719126753624,7.74825472,134.73,134.72,7.4226]
[1719126753802,21.7612,134.76,134.72,7.4226]
[1719126753803,22.7142,134.76,134.72,7.4226]
[1719126754004,29.2042,134.76,134.72,7.4226]
[1719126754212,7.74747513,134.73,134.72,7.4226]
[1719126754416,29.2042,134.76,134.72,7.4226]
[1719126754930,7.74746876,134.73,134.71,7.4231]
[1719126755121,36.6248,134.76,134.71,7.4231]
[1719126755314,7.74817474,134.73,134.71,7.4231]
[1719126755714,6.49,134.75,134.71,7.4231]
[1719126755910,7.74832621,134.73,134.71,7.4231]
[1719126759321,7.74832621,134.73,134.7,7.4236]
[1719126760810,7.74832621,134.73,134.7,13.9136]
[1719126761436,7.74832621,134.73,134.7,7.4236]
[1719126761635,7.74832621,134.73,134.71,7.4233]
[1719126765541,7.74832621,134.73,134.72,7.4228]
[1719126767538,7.74832621,134.73,134.71,7.4231]
[1719126771720,7.74832621,134.73,134.7,7.4237]
[1719126776737,7.74832621,134.73,134.71,7.4232]
[1719126777344,7.74832621,134.73,134.7,7.4236]
[1719126783340,7.74832621,134.73,134.71,7.4231]
[1719126786750,7.74832621,134.73,134.7,13.9136]
[1719126788634,7.74832621,134.73,134.71,6.49]
[1719126788839,7.74832621,134.73,134.71,13.9131]
[1719126790456,7.4196,134.78,134.72,13.9128]
[1719126790636,14.8626,134.78,134.73,13.9122]
[1719126790839,7.72845017,134.75,134.73,13.9122]
[1719126791151,14.8626,134.78,134.73,13.9122]
[1719126791450,7.7281017,134.75,134.73,13.9122]
[1719126791642,14.8626,134.78,134.73,13.9122]
[1719126791831,7.72596169,134.75,134.73,13.9122]
[1719126792231,14.8626,134.78,134.73,13.9122]
[1719126792454,7.72517293,134.76,134.73,13.9122]
[1719126794157,14.8626,134.78,134.73,13.9122]
[1719126794558,14.8626,134.78,134.73,6.49]
[1719126796968,7.4196,134.78,134.73,6.49]
[1719126797139,14.8626,134.78,134.73,6.49]
[1719126797761,7.74974369,134.77,134.73,6.49]
[1719126800664,15.16974369,134.77,134.73,6.49]
[1719126801767,7.4206,134.76,134.72,6.49]
[1719126802453,15.16994369,134.77,134.72,6.49]
[1719126804364,15.16994369,134.77,134.72,13.9126]
[1719126805766,13.9106,134.76,134.71,14.055]
[1719126805949,13.9106,134.76,134.71,20.545]
[1719126806657,21.65994369,134.77,134.72,7.4226]
[1719126808267,6.49,134.76,134.72,7.4226]
[1719126809062,7.7326208,134.75,134.72,7.4226]
[1719126811770,7.7326208,134.75,134.72,13.9126]
[1719126812567,7.7326208,134.75,134.73,7.4222]
[1719126813239,7.7326208,134.75,134.72,13.9126]
[1719126819273,7.7326208,134.75,134.71,7.4231]
[1719126820380,7.7326208,134.75,134.73,7.4219]
[1719126822354,7.7326208,134.75,134.73,13.9119]
[1719126823273,23.9923,134.79,134.74,13.9117]
[1719126823655,7.73440632,134.77,134.75,6.49]
[1719126824570,7.73440632,134.77,134.74,13.9117]
[1719126837014,7.73440632,134.77,134.75,13.9111]
[1719126838804,7.73440632,134.77,134.76,6.49]
[1719126839189,7.73440632,134.77,134.75,13.9111]
[1719126850320,7.73440632,134.77,134.75,7.4211]
[1719126850524,7.73440632,134.77,134.74,13.9116]
[1719126852614,7.73440632,134.77,134.75,7.4211]
[1719126856531,7.73440632,134.77,134.76,7.4205]
[1719126862934,7.73440632,134.77,134.74,7.4211]
[1719126863145,14.22440632,134.77,134.73,7.422]
[1719126867249,14.22440632,134.77,134.74,7.4216]
[1719126867650,7.73440632,134.77,134.74,7.4216]
[1719126868853,7.73440632,134.77,134.73,7.422]
[1719126873934,15.15450632,134.77,134.72,13.9125]
[1719126882532,7.4206,134.76,134.72,6.49]
[1719126883237,7.74084546,134.75,134.72,6.49]
[1719126883540,7.74084546,134.75,134.71,13.9131]
[1719126883761,7.74084546,134.75,134.72,0.70979395]
[1719126884659,7.74084546,134.75,134.72,8.13249395]
[1719126885664,7.74084546,134.75,134.72,14.62249395]
[1719126885838,7.74084546,134.75,134.72,13.9127]
[1719126886240,7.74084546,134.75,134.73,7.4222]
[1719126887067,7.74084546,134.75,134.72,13.9125]
[1719126887356,7.74084546,134.75,134.73,7.4221]
[1719126887567,7.74084546,134.75,134.74,0.73004024]
[1719126888866,7.74084546,134.75,134.73,13.9121]
[1719126890773,22.5597,134.79,134.74,13.9117]
[1719126890983,7.73517762,134.77,134.74,13.9117]
[1719126892873,7.73517762,134.77,134.74,6.49]
[1719126893076,7.73517762,134.77,134.75,7.22222578]
[1719126894171,7.73517762,134.77,134.73,7.422]
[1719126894359,7.73517762,134.77,134.75,6.49]
[1719126895779,7.73517762,134.77,134.74,6.49]
[1719126897393,7.73517762,134.77,134.74,13.9116]
[1719126902856,7.73517762,134.77,134.72,100.0]
[1719126903154,7.73517762,134.77,134.73,6.49]
[1719126903678,7.73517762,134.77,134.73,13.9118]
[1719126904674,7.73517762,134.77,134.74,7.4215]
[1719126911181,7.73517762,134.77,134.73,13.912]
[1719126911383,7.73517762,134.77,134.73,7.422]
[1719126911661,14.22517762,134.77,134.73,7.422]
[1719126913983,14.22517762,134.77,134.74,7.4216]
[1719126916282,7.73517762,134.77,134.74,7.4216]
[1719126916483,14.22517762,134.77,134.73,7.4221]
[1719126925463,7.73517762,134.77,134.73,7.4221]
[1719126925700,7.73517762,134.77,134.74,7.4216]
[1719126926699,7.73517762,134.77,134.74,13.9116]
[1719126927577,7.73517762,134.77,134.74,7.4216]
[1719126930000,7.73517762,134.77,134.73,13.912]
[1719126932511,15.15517762,134.77,134.73,13.912]
[1719126934516,15.15517762,134.77,134.73,6.49]
[1719126936495,15.15517762,134.77,134.72,13.9125]
[1719126939683,21.64517762,134.77,134.72,13.9125]
[1719126942807,21.64517762,134.77,134.72,7.4225]
[1719126942987,21.64517762,134.77,134.72,13.9125]
[1719126945216,21.64517762,134.77,134.73,7.4221]
[1719126947115,14.22517762,134.77,134.73,7.4221]
[1719126957490,7.73517762,134.77,134.73,7.4221]
[1719126957808,7.73517762,134.77,134.74,7.4215]
[1719126959007,7.73517762,134.77,134.74,13.9115]
[1719126959310,7.73517762,134.77,134.75,7.421]
[1719126962217,7.73517762,134.77,134.74,13.9116]
[1719126963823,7.73517762,134.77,134.75,13.9106]
[1719126963992,7.73517762,134.77,134.76,13.9105]
[1719126964195,7.418,134.81,134.76,13.9105]
[1719126964407,7.74635835,134.79,134.76,6.49]
[1719126964612,15.16525835,134.79,134.75,6.49]
[1719126965397,7.74635835,134.79,134.75,13.9109]
[1719126965814,7.74635835,134.79,134.76,6.49]
[1719126967433,7.74635835,134.79,134.76,13.9104]
[1719126969718,7.74635835,134.79,134.77,7.4199]
[1719126970095,7.74635835,134.79,134.77,13.9099]
[1719126972416,15.5654,134.82,134.79,7.4186]
[1719126972797,7.7451392,134.81,134.76,100.0]
[1719126973005,7.7451392,134.81,134.79,6.49]
[1719126973393,7.7451392,134.81,134.77,18.55]
[1719126973598,7.7451392,134.81,134.8,6.49]
[1719126974216,7.7451392,134.81,134.8,13.9083]
[1719126975218,22.6439,134.85,134.8,13.9083]
[1719126975623,7.74405334,134.83,134.8,13.9083]
[1719126981324,7.74405334,134.83,134.79,7.4187]
[1719126981500,15.16095334,134.83,134.78,13.9094]
[1719126981700,21.65095334,134.83,134.78,13.9094]
[1719126983719,14.23405334,134.83,134.79,7.4189]
[1719126987227,14.23405334,134.83,134.8,7.4183]
[1719126988822,6.66,134.82,134.76,18.5513]
[1719126989117,6.49,134.81,134.77,7.4197]
[1719126989508,7.74601675,134.8,134.77,7.4197]
[1719126989912,7.74601675,134.8,134.78,7.4194]
[1719126993533,7.74601675,134.8,134.79,7.4189]
[1719126994827,7.74601675,134.8,134.78,7.4192]
[1719126997931,7.74601675,134.8,134.77,13.9098]
[1719126998429,7.74601675,134.8,134.78,7.4193]
[1719126999509,7.74601675,134.8,134.77,13.9098]
[1719127003210,7.74601675,134.8,134.77,7.4198]
[1719127003411,7.74601675,134.8,134.77,13.9098]
[1719127003626,7.74601675,134.8,134.77,7.4198]
[1719127005234,7.74601675,134.8,134.76,6.49]
[1719127005235,7.74601675,134.8,134.76,7.4203]
[1719127007420,7.74601675,134.8,134.77,7.42]
[1719127021142,7.74601675,134.8,134.78,7.4194]
[1719127024246,7.74601675,134.8,134.79,7.4189]
[1719127024853,6.4903,134.84,134.79,6.49]
[1719127025053,7.73605138,134.83,134.8,7.4181]
[1719127025650,7.73605138,134.83,134.8,13.9081]
[1719127026030,7.73605138,134.83,134.81,13.9074]
[1719127027952,7.73605138,134.83,134.81,6.49]
[1719127028151,7.73605138,134.83,134.8,13.9082]
[1719127028654,7.73605138,134.83,134.8,7.4182]
[1719127028855,7.73605138,134.83,134.8,13.9082]
[1719127030331,7.73605138,134.83,134.8,7.4182]
[1719127030641,7.73605138,134.83,134.79,13.9087]
[1719127031531,7.73605138,134.83,134.8,7.4183]
[1719127034834,7.73605138,134.83,134.81,7.4178]
[1719127037561,7.73605138,134.83,134.8,7.4181]
[1719127042468,7.73605138,134.83,134.81,7.4178]
[1719127043647,7.73605138,134.83,134.8,7.4181]
[1719127045967,7.73605138,134.83,134.79,7.4187]
[1719127046150,14.22605138,134.83,134.79,7.4187]
[1719127046347,6.49,134.82,134.79,7.4187]
[1719127046968,7.7366452,134.81,134.79,7.4187]
[1719127049968,7.7366452,134.81,134.8,7.4183]
[1719127050148,7.7366452,134.81,134.8,13.9083]
[1719127051667,7.7366452,134.81,134.8,7.4183]
[1719127055375,7.7366452,134.81,134.79,13.9087]
[1719127061584,7.7366452,134.81,134.77,7.4197]
[1719127061787,7.7366452,134.81,134.79,6.49]
[1719127062584,7.7366452,134.81,134.76,106.1099]
[1719127062777,7.7366452,134.81,134.79,6.49]
[1719127063685,7.7366452,134.81,134.78,7.4194]
[1719127063884,7.7366452,134.81,134.79,6.49]
[1719127065577,22.8116,134.85,134.79,7.4185]
[1719127065884,7.71554353,134.83,134.8,6.49]
[1719127066588,7.71554353,134.83,134.79,13.9085]
[1719127068191,7.71554353,134.83,134.8,7.4183]
[1719127072795,7.71554353,134.83,134.81,7.4178]
[1719127075090,7.71554353,134.83,134.8,6.49]
[1719127075993,7.71554353,134.83,134.81,7.4176]
[1719127078187,7.71554353,134.83,134.78,100.0]
[1719127078388,7.71554353,134.83,134.8,13.908]
[1719127079193,7.71554353,134.83,134.8,6.49]
[1719127079384,7.71554353,134.83,134.81,7.4178]
[1719127094106,7.71554353,134.83,134.8,7.4182]
[1719127102703,7.71554353,134.83,134.79,13.9088]
[1719127103714,7.71554353,134.83,134.79,7.4188]
[1719127104195,7.71554353,134.83,134.78,6.49]
[1719127104196,15.13264353,134.83,134.78,6.49]
[1719127104398,6.49,134.81,134.76,7.4202]
[1719127104722,6.49,134.81,134.76,13.9102]
[1719127105117,7.70925251,134.8,134.76,13.9102]
[1719127107023,7.70925251,134.8,134.75,7.4209]
[1719127107211,7.70925251,134.8,134.73,25.2068]
[1719127107212,14.19925251,134.8,134.76,7.4205]
[1719127109195,7.70925251,134.8,134.76,7.4205]
[1719127109396,6.49,134.79,134.76,7.4205]
[1719127109615,6.49,134.79,134.75,7.421]
[1719127113102,14.19925251,134.8,134.75,13.911]
[1719127113493,14.19925251,134.8,134.76,0.70355582]
[1719127113698,14.19925251,134.8,134.75,13.911]
[1719127114499,21.61765251,134.8,134.75,13.911]
[1719127115623,21.61765251,134.8,134.75,6.49]
[1719127118111,21.61765251,134.8,134.74,13.9114]
[1719127120529,7.419,134.79,134.74,13.9114]
[1719127121329,7.68331931,134.78,134.74,13.9114]
[1719127123517,7.68331931,134.78,134.74,6.49]
[1719127124124,7.68331931,134.78,134.73,7.422]
[1719127124429,7.68331931,134.78,134.74,6.49]
[1719127125606,7.68331931,134.78,134.74,13.9116]
[1719127125806,6.2116,134.83,134.77,13.91]
[1719127126008,20.1184,134.83,134.78,6.49]
[1719127126207,7.68592497,134.82,134.78,6.49]
[1719127127629,7.68592497,134.82,134.77,13.91]
[1719127129935,7.68592497,134.82,134.78,7.4193]
[1719127130629,7.68592497,134.82,134.78,13.9093]
[1719127134536,7.68592497,134.82,134.78,7.4193]
[1719127140819,14.17592497,134.82,134.77,7.4199]
[1719127141019,6.49,134.81,134.77,7.4199]
[1719127141418,6.49,134.81,134.76,13.9105]
[1719127141620,7.69316078,134.8,134.76,13.9105]
[1719127145249,7.69316078,134.8,134.77,7.4199]
[1719127146050,7.69316078,134.8,134.76,7.4205]
[1719127146224,7.69316078,134.8,134.76,13.9105]
[1719127148330,7.69316078,134.8,134.76,6.49]
[1719127149554,7.69316078,134.8,134.75,13.9109]
[1719127151348,14.18316078,134.8,134.75,13.9109]
[1719127151554,14.18316078,134.8,134.75,7.4209]
[1719127154554,14.18316078,134.8,134.74,13.9114]
[1719127154734,6.49,134.79,134.74,13.9114]
[1719127155463,7.69231109,134.78,134.74,13.9114]
[1719127159846,7.69231109,134.78,134.75,13.911]
[1719127160044,7.69231109,134.78,134.76,13.9102]
[1719127160257,16.6497,134.81,134.77,7.42]
[1719127160781,7.69407453,134.8,134.77,13.91]
[1719127161137,7.69407453,134.8,134.77,6.49]
[1719127162952,7.69407453,134.8,134.76,13.9103]
[1719127164446,7.69407453,134.8,134.76,7.4203]
[1719127164644,7.69407453,134.8,134.76,6.49]
[1719127165879,7.69407453,134.8,134.76,13.9105]
[1719127169375,7.69407453,134.8,134.78,100.0]
[1719127169552,7.69407453,134.8,134.78,113.9091]
[1719127169774,6.49,134.84,134.78,113.9091]
[1719127169967,7.68842447,134.83,134.78,113.9091]
[1719127170166,7.68842447,134.83,134.79,6.49]
[1719127175873,7.68842447,134.83,134.78,107.4191]
[1719127184458,7.68842447,134.83,134.79,6.49]
[1719127185781,7.68842447,134.83,134.78,107.4191]
[1719127185782,7.68842447,134.83,134.78,113.9091]
[1719127185978,7.68842447,134.83,134.78,13.9091]
[1719127186180,14.17842447,134.83,134.77,13.9098]
[1719127187582,14.17842447,134.83,134.78,7.4194]
[1719127189096,14.17842447,134.83,134.78,13.9094]
[1719127191273,7.68842447,134.83,134.78,13.9094]
[1719127193806,14.17842447,134.83,134.78,13.9094]
[1719127198092,14.17842447,134.83,134.78,7.4194]
[1719127199894,7.68842447,134.83,134.78,7.4194]
[1719127200098,14.17842447,134.83,134.78,7.4194]
[1719127201673,14.17842447,134.83,134.77,13.9098]
[1719127201868,6.49,134.82,134.74,118.5529]
[1719127202072,6.49,134.81,134.76,7.4203]
[1719127202484,14.17707757,134.81,134.76,7.4203]
[1719127202679,6.49,134.8,134.76,7.4203]
[1719127204296,6.49,134.8,134.76,107.4203]
[1719127204505,14.17707757,134.81,134.76,113.9103]
[1719127204975,14.17707757,134.81,134.77,7.42]
[1719127205878,7.68707757,134.81,134.77,7.42]
[1719127210681,7.68707757,134.81,134.76,113.9104]
[1719127211779,14.17707757,134.81,134.76,113.9104]
[1719127212612,7.68707757,134.81,134.76,113.9104]
[1719127214912,7.68707757,134.81,134.76,107.4204]
[1719127215085,7.68707757,134.81,134.76,113.9104]
[1719127215285,14.17707757,134.81,134.76,113.9104]
[1719127221216,7.68707757,134.81,134.76,113.9104]
[1719127221418,7.68707757,134.81,134.78,6.49]
[1719127221597,7.68707757,134.81,134.78,13.9094]
[1719127223494,7.68707757,134.81,134.78,6.49]
[1719127225226,7.68707757,134.81,134.77,13.9098]
[1719127231320,7.68707757,134.81,134.78,7.4194]
[1719127238701,7.68707757,134.81,134.77,13.9099]
[1719127242136,7.68707757,134.81,134.78,7.4194]
[1719127245634,7.68707757,134.81,134.77,13.91]
[1719127245825,7.68707757,134.81,134.77,7.42]
[1719127246002,7.68707757,134.81,134.77,13.91]
[1719127246825,7.68707757,134.81,134.77,7.42]
[1719127249132,7.68707757,134.81,134.77,13.91]
[1719127251638,7.68707757,134.81,134.78,7.4194]
[1719127263049,7.68707757,134.81,134.78,107.4194]
[1719127263345,15.2662,134.83,134.78,113.9094]
[1719127263532,23.0231009,134.83,134.79,6.49]
[1719127264346,23.0231009,134.83,134.78,107.4194]
[1719127264526,23.0231009,134.83,134.78,113.9094]
[1719127264941,29.5131009,134.83,134.78,106.49]
[1719127265727,29.5131009,134.83,134.78,100.0]
[1719127265931,29.5131009,134.83,134.75,0.17]
[1719127265932,6.49,134.82,134.76,107.4203]
[1719127266234,6.49,134.81,134.76,7.4203]
[1719127267452,6.49,134.81,134.76,113.9103]
[1719127267852,6.49,134.81,134.76,107.4203]
[1719127269444,23.0231009,134.83,134.77,7.4199]
[1719127269641,6.49,134.82,134.77,13.9099]
[1719127271250,23.0231009,134.83,134.77,13.9099]
[1719127271431,23.0231009,134.83,134.78,100.0]
[1719127271632,29.5131009,134.83,134.78,100.0]
[1719127271933,23.0231009,134.83,134.78,100.0]
[1719127272134,29.5131009,134.83,134.78,100.0]
[1719127272328,23.0231009,134.83,134.78,100.0]
[1719127272563,29.5131009,134.83,134.78,107.4194]
[1719127273238,29.5131009,134.83,134.78,100.0]
[1719127275565,29.5131009,134.83,134.77,13.9098]
[1719127276256,6.49,134.82,134.77,13.9098]
[1719127277546,6.49,134.82,134.77,7.4198]
[1719127285041,6.49,134.82,134.78,7.4194]
[1719127290273,6.49,134.81,134.77,7.4199]
[1719127290676,14.23956012,134.81,134.77,7.4199]
[1719127290968,6.49,134.8,134.77,7.4199]
[1719127295281,14.23956012,134.81,134.77,7.4199]
[1719127299382,7.74956012,134.81,134.78,7.4192]
[1719127300952,7.74956012,134.81,134.78,13.9092]
[1719127303159,7.74956012,134.81,134.78,7.4192]
[1719127305887,7.74956012,134.81,134.77,13.9098]
[1719127325785,7.74956012,134.81,134.78,107.4194]
[1719127329088,7.74956012,134.81,134.78,113.9094]
[1719127329287,15.2662,134.83,134.79,6.49]
[1719127329505,23.00911093,134.83,134.79,6.49]
[1719127331204,29.49911093,134.83,134.78,106.49]
[1719127331714,23.00911093,134.83,134.79,7.4188]
[1719127331915,23.00911093,134.83,134.78,106.49]
[1719127332090,23.00911093,134.83,134.78,113.9093]
[1719127332413,29.49911093,134.83,134.78,113.9093]
[1719127332796,23.00911093,134.83,134.78,113.9093]
[1719127333014,29.49911093,134.83,134.78,106.49]
[1719127335619,23.00911093,134.83,134.78,106.49]
[1719127339023,29.49911093,134.83,134.78,106.49]
[1719127339922,23.00911093,134.83,134.78,106.49]
[1719127340134,29.49911093,134.83,134.78,106.49]
[1719127348498,29.49911093,134.83,134.78,100.0]
[1719127351527,29.49911093,134.83,134.78,107.4194]
[1719127352829,21.7562,134.83,134.78,107.4194]
[1719127356131,6.49,134.82,134.78,107.4194]
[1719127360637,21.7562,134.83,134.78,107.4194]
[1719127362035,15.2662,134.83,134.78,107.4194]
[1719127362212,21.7562,134.83,134.78,107.4194]
[1719127362536,21.7562,134.83,134.79,7.4188]
[1719127362930,29.49845229,134.83,134.79,7.4188]
[1719127364134,29.49845229,134.83,134.78,107.4192]
[1719127365839,6.49,134.82,134.78,107.4192]
[1719127368139,29.49845229,134.83,134.78,107.4192]
[1719127381860,23.00845229,134.83,134.78,113.9092]
[1719127382336,29.49845229,134.83,134.78,113.9092]
[1719127383052,29.49845229,134.83,134.78,107.4192]
[1719127383962,23.00845229,134.83,134.78,107.4192]
[1719127384132,29.49845229,134.83,134.78,107.4192]
[1719127384334,29.49845229,134.83,134.78,113.9092]
[1719127387938,29.49845229,134.83,134.78,106.49]
[1719127389164,36.91515229,134.83,134.78,100.0]
[1719127389366,36.91515229,134.83,134.78,106.49]
[1719127391663,36.91515229,134.83,134.78,100.0]
[1719127393855,29.49845229,134.83,134.78,100.0]
[1719127396343,23.00845229,134.83,134.78,107.4193]
[1719127396542,29.49845229,134.83,134.78,107.4193]
[1719127396755,29.49845229,134.83,134.78,113.9093]
[1719127400564,23.00845229,134.83,134.78,113.9093]
[1719127400747,23.00845229,134.83,134.79,7.4189]
[1719127401149,23.00845229,134.83,134.8,100.0]
[1719127412356,29.49845229,134.83,134.78,100.0]
[1719127412560,6.49,134.82,134.78,100.0]
[1719127412786,6.49,134.82,134.78,107.4194]